bitfinex/quotes_BTCUSD_20250916
["timestamp","ask_amount","ask_price","bid_price","bid_amount"]
[1758036153674,1.33739479,115320.0,115310.0,0.001]
[1758036154401,1.06451479,115320.0,115310.0,0.001]
[1758036154581,1.33735479,115320.0,115310.0,0.001]
[1758036154784,1.06451479,115320.0,115310.0,0.001]
[1758036154956,1.33735479,115320.0,115310.0,0.001]
[1758036155963,1.3535914,115320.0,115310.0,0.001]
[1758036156922,1.3535914,115320.0,115310.0,0.00104]
[1758036158011,0.52571224,115320.0,115310.0,0.00104]
[1758036158429,1.3535914,115320.0,115310.0,0.00104]
[1758036161460,1.35359787,115320.0,115310.0,0.00104]
[1758036167407,2.20013282,115320.0,115310.0,0.00104]
[1758036167825,2.22619751,115320.0,115310.0,0.00104]
[1758036168032,2.22519751,115320.0,115310.0,0.00104]
[1758036168245,1.44891648,115320.0,115310.0,4e-05]
[1758036168464,1.70445179,115320.0,115310.0,0.00204]
[1758036168892,1.69545179,115320.0,115310.0,4e-05]
[1758036169288,1.70445179,115320.0,115310.0,0.00204]
[1758036170137,2.11839137,115320.0,115310.0,0.00204]
[1758036171062,1.70441179,115320.0,115310.0,0.00204]
[1758036172174,0.87653263,115320.0,115310.0,0.00204]
[1758036172387,1.70465179,115320.0,115310.0,0.00204]
[1758036173425,0.87677263,115320.0,115310.0,0.00204]
[1758036173642,1.70465179,115320.0,115310.0,0.00204]
[1758036176051,1.70465497,115320.0,115310.0,0.00204]
[1758036179783,0.96009581,115320.0,115310.0,0.00204]
[1758036179999,1.78797497,115320.0,115310.0,0.00204]
[1758036180497,2.288416,115320.0,115310.0,0.00204]
[1758036180729,0.54361243,115300.0,115290.0,0.0001]
[1758036180961,1.66185467,115300.0,115290.0,0.0001]
[1758036181193,1.69702273,115300.0,115290.0,0.0001]
[1758036181423,0.20362748,115290.0,115280.0,0.0001]
[1758036181655,1.73878972,115290.0,115280.0,0.0001]
[1758036181886,0.17349063,115280.0,115270.0,0.02272]
[1758036182130,0.86704021,115280.0,115270.0,0.10922145]
[1758036182368,0.45320063,115280.0,115270.0,0.10922145]
[1758036182607,0.86714021,115280.0,115270.0,0.10922145]
[1758036183075,0.89096021,115280.0,115270.0,0.08660145]
[1758036183323,0.47702063,115280.0,115270.0,0.08660145]
[1758036183553,0.44823063,115280.0,115270.0,0.26454713]
[1758036183800,0.86217021,115280.0,115270.0,0.28732713]
[1758036184772,0.86317021,115280.0,115270.0,0.28732713]
[1758036185028,0.86317021,115280.0,115270.0,0.28489713]
[1758036185266,0.86325021,115280.0,115270.0,0.28489713]
[1758036185500,0.86425021,115280.0,115270.0,0.28589713]
[1758036185995,0.86628021,115280.0,115270.0,0.11239145]
[1758036186717,0.86926021,115280.0,115270.0,0.11239145]
[1758036186983,0.86926021,115280.0,115270.0,0.11038145]
[1758036187224,0.47980063,115280.0,115270.0,0.08760145]
[1758036187458,0.89374021,115280.0,115270.0,0.08760145]
[1758036189030,0.47980063,115280.0,115270.0,0.08760145]
[1758036189268,0.90240591,115280.0,115270.0,0.08760145]
[1758036189509,0.87792591,115280.0,115270.0,0.08760145]
[1758036189755,0.90240591,115280.0,115270.0,0.08760145]
[1758036192668,0.61902021,115280.0,115270.0,0.08760145]
[1758036192854,0.89350021,115280.0,115270.0,0.08760145]
[1758036193294,0.90218237,115280.0,115270.0,0.08760145]
[1758036194209,0.62770237,115280.0,115270.0,0.08760145]
[1758036194367,0.90210237,115280.0,115270.0,0.08760145]
[1758036196001,0.90210237,115280.0,115270.0,0.0011]
[1758036196002,1.34619385,115280.0,115270.0,0.0011]
[1758036196241,1.34619385,115280.0,115270.0,0.001]
[1758036196475,0.93225427,115280.0,115270.0,0.001]
[1758036196703,0.93217427,115280.0,115270.0,0.001]
[1758036197898,1.25484747,115280.0,115270.0,0.001]
[1758036198344,0.98052747,115280.0,115270.0,0.001]
[1758036198571,1.25492747,115280.0,115270.0,0.001]
[1758036201216,0.98052747,115280.0,115270.0,0.001]
[1758036201466,1.25504747,115280.0,115270.0,0.001]
[1758036202197,1.6112882,115280.0,115270.0,0.001]
[1758036202691,1.6198882,115280.0,115270.0,0.001]
[1758036202922,0.17352073,115260.0,115250.0,0.0001]
[1758036203169,0.92985902,115260.0,115250.0,0.0001]
[1758036203401,0.95934902,115260.0,115250.0,0.0001]
[1758036203669,0.20368769,115250.0,115240.0,0.0001]
[1758036203904,1.00637829,115250.0,115240.0,0.0001]
[1758036204145,0.90746408,115250.0,115240.0,0.02489]
[1758036204386,1.18488408,115250.0,115240.0,0.02489]
[1758036204604,0.91044408,115250.0,115240.0,0.02489]
[1758036204840,1.18200408,115250.0,115240.0,0.02489]
[1758036205491,1.18200408,115250.0,115240.0,0.02589]
[1758036205749,1.18498408,115250.0,115240.0,0.02589]
[1758036205990,1.18498408,115250.0,115240.0,0.0011]
[1758036206230,1.20946408,115250.0,115240.0,0.0011]
[1758036206720,1.20954408,115250.0,115240.0,0.0011]
[1758036207212,1.21054408,115250.0,115240.0,0.0031]
[1758036207717,0.56771769,115250.0,115240.0,0.00314]
[1758036207940,1.21054408,115250.0,115240.0,0.00314]
[1758036209752,0.93602408,115250.0,115240.0,0.02592]
[1758036210016,1.21054408,115250.0,115240.0,0.00314]
[1758036210220,1.18308408,115250.0,115240.0,0.20148085]
[1758036210429,1.18105408,115250.0,115240.0,0.02793]
[1758036210890,1.18606408,115250.0,115240.0,0.02592]
[1758036211125,1.21054408,115250.0,115240.0,0.00314]
[1758036213885,1.21046408,115250.0,115240.0,0.00314]
[1758036214380,1.21046408,115250.0,115240.0,0.02796]
[1758036214836,0.84215769,115250.0,115240.0,0.20151085]
[1758036215093,1.18598408,115250.0,115240.0,0.20151085]
[1758036215308,1.18598408,115250.0,115240.0,0.02796]
[1758036215733,1.20924408,115250.0,115240.0,0.00314]
[1758036216409,1.20925408,115250.0,115240.0,0.00314]
[1758036217048,1.18599408,115250.0,115240.0,0.00314]
[1758036217266,1.20925408,115250.0,115240.0,0.00314]
[1758036217713,0.84094769,115250.0,115240.0,0.00314]
[1758036217923,1.20925408,115250.0,115240.0,0.00314]
[1758036219038,0.81302769,115250.0,115240.0,0.20365085]
[1758036219251,1.18133408,115250.0,115240.0,0.20365085]
[1758036219461,1.18340408,115250.0,115240.0,0.02796]
[1758036219645,1.20961408,115250.0,115240.0,0.00314]
[1758036220349,1.20961408,115250.0,115240.0,0.02796]
[1758036220547,0.91155408,115250.0,115240.0,0.20151085]
[1758036220773,0.90653408,115250.0,115240.0,0.20365085]
[1758036220997,1.18133408,115250.0,115240.0,0.20365085]
[1758036221929,1.18340408,115250.0,115240.0,0.0301]
[1758036222682,1.18635408,115250.0,115240.0,0.0301]
[1758036222887,1.18635408,115250.0,115240.0,0.20365085]
[1758036223307,0.90860408,115250.0,115240.0,0.20365085]
[1758036223511,1.18117408,115250.0,115240.0,0.20365085]
[1758036223784,1.18324408,115250.0,115240.0,0.20365085]
[1758036223917,1.20945408,115250.0,115240.0,0.00314]
[1758036226694,1.22570587,115250.0,115240.0,0.00314]
[1758036227131,1.97974769,115250.0,115240.0,0.00314]
[1758036227376,1.94010769,115250.0,115240.0,0.00304]
[1758036227594,1.94010769,115250.0,115240.0,0.00204]
[1758036227812,1.5718013,115250.0,115240.0,0.00204]
[1758036228062,1.5728013,115250.0,115240.0,4e-05]
[1758036228273,1.5728017,115250.0,115240.0,4e-05]
[1758036228498,1.5758017,115250.0,115240.0,0.00104]
[1758036230040,1.3011617,115250.0,115240.0,0.00104]
[1758036230261,1.5759617,115250.0,115240.0,0.00104]
[1758036232186,1.57596905,115250.0,115240.0,0.00104]
[1758036234715,1.94427544,115250.0,115240.0,0.00104]
[1758036235131,1.57596905,115250.0,115240.0,0.00104]
[1758036235343,1.57596632,115250.0,115240.0,0.00104]
[1758036235996,1.57595905,115250.0,115240.0,0.00104]
[1758036237104,1.30115711,115250.0,115240.0,0.00104]
[1758036237753,1.57571711,115250.0,115240.0,0.00104]
[1758036239036,1.30115711,115250.0,115240.0,0.00104]
[1758036239285,1.57567711,115250.0,115240.0,0.00104]
[1758036239935,1.57565711,115250.0,115240.0,0.00104]
[1758036241079,2.04755824,115250.0,115240.0,0.00104]
[1758036241304,2.07373287,115250.0,115240.0,0.00104]
[1758036241520,2.09822287,115250.0,115240.0,0.00104]
[1758036241740,2.07212824,115250.0,115240.0,0.00104]
[1758036242620,2.06912824,115250.0,115240.0,4e-05]
[1758036243053,2.07512824,115250.0,115240.0,0.00104]
[1758036243273,2.06712824,115250.0,115240.0,4e-05]
[1758036243511,2.06912824,115250.0,115240.0,0.00104]
[1758036243725,2.07512824,115250.0,115240.0,0.00204]
[1758036243943,1.80052824,115250.0,115240.0,0.00204]
[1758036244165,2.07312824,115250.0,115240.0,0.00104]
[1758036244383,2.07608824,115250.0,115240.0,0.00204]
[1758036245458,2.06999469,115250.0,115240.0,0.00204]
[1758036245706,2.07608327,115250.0,115240.0,0.00204]
[1758036245917,2.05890998,115250.0,115240.0,0.00204]
[1758036246553,2.05894998,115250.0,115240.0,0.00204]
[1758036246992,1.41612359,115250.0,115240.0,0.00204]
[1758036247206,1.69064359,115250.0,115240.0,0.00204]
[1758036247441,2.02424359,115250.0,115240.0,0.00204]
[1758036248611,1.6559372,115250.0,115240.0,0.00204]
[1758036248824,2.02424359,115250.0,115240.0,0.00204]
[1758036250233,2.39254998,115250.0,115240.0,0.00204]
[1758036250734,2.37021192,115250.0,115240.0,0.00204]
[1758036250967,2.39253603,115250.0,115240.0,0.00204]
[1758036251417,2.02422964,115250.0,115240.0,0.00204]
[1758036252200,2.39253603,115250.0,115240.0,0.00204]
[1758036254136,2.392539,115250.0,115240.0,0.00204]
[1758036255258,2.118019,115250.0,115240.0,0.00204]
[1758036255469,2.392339,115250.0,115240.0,0.00204]
[1758036256177,2.39235627,115250.0,115240.0,0.00204]
[1758036256854,2.41789676,115250.0,115240.0,0.00204]
[1758036258167,2.4179119,115250.0,115240.0,0.00204]
[1758036258621,2.39257141,115250.0,115240.0,0.00204]
[1758036258871,2.11805141,115250.0,115240.0,0.00204]
[1758036259099,2.39257141,115250.0,115240.0,0.00204]
[1758036259962,2.48522621,115250.0,115240.0,0.00204]
[1758036263733,2.48523216,115250.0,115240.0,0.00204]
[1758036264798,1.65596458,115250.0,115240.0,0.00204]
[1758036265003,2.46896476,115250.0,115240.0,0.00204]
[1758036265204,2.46286672,115250.0,115240.0,0.00204]
[1758036265432,2.47913738,115250.0,115240.0,0.00204]
[1758036266013,2.48531888,115250.0,115240.0,0.00204]
[1758036266666,2.46294672,115250.0,115240.0,0.00204]
[1758036267052,2.47921931,115250.0,115240.0,0.00204]
[1758036267255,2.03839552,115250.0,115240.0,0.00204]
[1758036267479,2.04141552,115250.0,115240.0,0.0287]
[1758036267690,2.04141552,115250.0,115240.0,0.02656]
[1758036267901,2.04793293,115250.0,115240.0,0.02656]
[1758036268105,1.34132926,115250.0,115240.0,0.00418]
[1758036268307,1.61592926,115250.0,115240.0,0.0287]
[1758036268512,1.20129547,115250.0,115240.0,0.0287]
[1758036268733,1.95596926,115250.0,115240.0,0.0287]
[1758036271483,1.96106926,115250.0,115240.0,0.02656]
[1758036272326,1.97779623,115250.0,115240.0,0.00204]
[1758036272798,1.98389664,115250.0,115240.0,0.00204]
[1758036273215,1.98389664,115250.0,115240.0,0.02656]
[1758036274112,1.96106664,115250.0,115240.0,0.02656]
[1758036274323,1.94986623,115250.0,115240.0,0.02856]
[1758036274944,1.95199623,115250.0,115240.0,0.02856]
[1758036276829,1.94986623,115250.0,115240.0,0.02856]
[1758036277252,1.97974623,115250.0,115240.0,0.00204]
[1758036277467,1.97974623,115250.0,115240.0,0.02529]
[1758036278815,1.97974623,115250.0,115240.0,0.00204]
[1758036282512,1.67522623,115250.0,115240.0,0.02729]
[1758036282770,1.26059244,115250.0,115240.0,0.02972]
[1758036282999,1.49406769,115250.0,115240.0,0.02972]
[1758036283267,1.90870148,115250.0,115240.0,0.02972]
[1758036283935,1.90570148,115250.0,115240.0,0.02872]
[1758036284146,1.89970148,115250.0,115240.0,0.02772]
[1758036284357,1.90070148,115250.0,115240.0,0.02872]
[1758036285157,1.90170148,115250.0,115240.0,0.02872]
[1758036287226,1.90170148,115250.0,115240.0,0.02629]
[1758036287453,1.90383148,115250.0,115240.0,0.02629]
[1758036287699,1.90695148,115250.0,115240.0,0.02629]
[1758036289038,1.90383148,115250.0,115240.0,0.02629]
[1758036289514,1.90695148,115250.0,115240.0,0.02629]
[1758036290178,1.90383148,115250.0,115240.0,0.02629]
[1758036292164,1.90170148,115250.0,115240.0,0.02629]
[1758036292614,1.90170148,115250.0,115240.0,0.02872]
[1758036292875,1.90170148,115250.0,115240.0,0.02629]
[1758036293329,1.90695148,115250.0,115240.0,0.02629]
[1758036294010,1.90383148,115250.0,115240.0,0.02629]
[1758036294225,1.90695148,115250.0,115240.0,0.02629]
[1758036294441,1.92322526,115250.0,115240.0,0.02629]
[1758036295665,1.92322525,115250.0,115240.0,0.02629]
[1758036296878,1.92010525,115250.0,115240.0,0.02629]
[1758036297122,1.50334146,115250.0,115240.0,0.02629]
[1758036297364,1.91797525,115250.0,115240.0,0.02629]
[1758036300284,1.92004525,115250.0,115240.0,0.02629]
[1758036300542,1.94716525,115250.0,115240.0,0.00104]
[1758036301628,1.94716525,115250.0,115240.0,0.02547]
[1758036301867,1.50458146,115250.0,115240.0,0.02757]
[1758036302102,1.91921525,115250.0,115240.0,0.02757]
[1758036303185,1.92443525,115250.0,115240.0,0.00104]
[1758036303419,1.94840525,115250.0,115240.0,0.00104]
[1758036304564,1.94836525,115250.0,115240.0,0.00104]
[1758036306652,1.17598146,115250.0,115240.0,0.02912]
[1758036306937,1.15970769,115250.0,115240.0,0.02912]
[1758036307165,1.57434148,115250.0,115240.0,0.02669]
[1758036307398,1.15970769,115250.0,115240.0,0.02669]
[1758036307643,1.57434148,115250.0,115240.0,0.02669]
[1758036308073,1.57434148,115250.0,115240.0,0.02912]
[1758036308746,1.15970769,115250.0,115240.0,0.02912]
[1758036308930,1.57434148,115250.0,115240.0,0.02912]
[1758036309158,1.29386148,115250.0,115240.0,0.02912]
[1758036309581,1.57434148,115250.0,115240.0,0.02912]
[1758036310535,1.57422148,115250.0,115240.0,0.02912]
[1758036311886,1.57422148,115250.0,115240.0,0.02669]
[1758036312142,1.57618148,115250.0,115240.0,0.02669]
[1758036312635,1.57942148,115250.0,115240.0,0.02669]
[1758036313113,1.57618148,115250.0,115240.0,0.02669]
[1758036313326,1.57422148,115250.0,115240.0,0.02669]
[1758036314682,1.57422148,115250.0,115240.0,0.00554]
[1758036314909,0.33554,115250.0,115240.0,0.70380609]
[1758036315130,0.61554,115250.0,115240.0,0.70390609]
[1758036315567,0.33554,115250.0,115240.0,0.70390609]
[1758036315826,0.61558,115250.0,115240.0,0.70390609]
[1758036316773,0.61558,115250.0,115240.0,0.71275847]
[1758036316992,0.33554,115250.0,115240.0,0.29812468]
[1758036317241,0.6155,115250.0,115240.0,0.29812468]
[1758036317471,0.6155,115250.0,115240.0,0.71275847]
[1758036317689,0.33554,115250.0,115240.0,0.71275847]
[1758036318134,0.61528,115250.0,115240.0,0.71275847]
[1758036319081,0.61528,115250.0,115240.0,0.72125847]
[1758036320013,0.61428,115250.0,115240.0,0.30662468]
[1758036320244,0.61328,115250.0,115240.0,0.30562468]
[1758036320458,0.61428,115250.0,115240.0,0.67681892]
[1758036320670,0.61528,115250.0,115240.0,1.08281892]
[1758036322378,0.33544,115250.0,115240.0,1.08281892]
[1758036322593,0.28172,115250.0,115240.0,1.79101316]
[1758036322980,0.28172,115250.0,115240.0,1.81708063]
[1758036323624,0.002,115250.0,115240.0,1.81708063]
[1758036323825,0.28148,115250.0,115240.0,1.81708063]
[1758036326971,0.002,115250.0,115240.0,1.81708063]
[1758036331709,0.002,115250.0,115240.0,1.80858063]
[1758036332156,0.002,115250.0,115240.0,1.44888639]
[1758036333477,0.002,115250.0,115240.0,1.08069215]
[1758036333714,0.002,115250.0,115240.0,1.44888639]
[1758036335556,0.002,115250.0,115240.0,1.08069215]
[1758036335947,0.002,115250.0,115240.0,1.44888639]
[1758036340151,0.002,115250.0,115240.0,0.74069215]
[1758036340579,0.002,115250.0,115240.0,1.10888639]
[1758036340989,0.002,115250.0,115240.0,0.74069215]
[1758036341196,0.002,115250.0,115240.0,1.10888639]
[1758036341823,0.08536,115250.0,115240.0,1.10888639]
[1758036342034,0.36364,115250.0,115240.0,1.10888639]
[1758036342666,0.3636,115250.0,115240.0,1.10888639]
[1758036342846,0.3636,115250.0,115240.0,0.74069215]
[1758036343290,0.3636,115250.0,115240.0,1.10888639]
[1758036344504,0.08536,115250.0,115240.0,1.10888639]
[1758036344716,0.002,115250.0,115240.0,1.10038639]
[1758036344927,0.002,115250.0,115240.0,1.47708063]
[1758036345307,0.002,115250.0,115240.0,1.10888639]
[1758036347250,0.002,115250.0,115240.0,0.74069215]
[1758036347455,0.002,115250.0,115240.0,1.10888639]
[1758036348385,0.002,115250.0,115240.0,0.74069215]
[1758036348575,0.002,115250.0,115240.0,1.10888639]
[1758036353190,0.002,115250.0,115240.0,0.74069215]
[1758036353579,0.002,115250.0,115240.0,1.10888639]
[1758036354005,0.2822,115250.0,115240.0,0.74069215]
[1758036354226,0.2822,115250.0,115240.0,1.10888639]
[1758036355378,0.282,115250.0,115240.0,1.10888639]
[1758036355604,0.002,115250.0,115240.0,1.10888639]
[1758036355838,0.28196,115250.0,115240.0,1.10888639]
[1758036356319,0.28196,115250.0,115240.0,0.74069215]
[1758036356574,0.28196,115250.0,115240.0,1.10888639]
[1758036356992,0.002,115250.0,115240.0,1.10888639]
[1758036357224,0.002,115250.0,115240.0,0.74069215]
[1758036357453,0.2818,115250.0,115240.0,1.10888639]
[1758036360483,0.2816,115250.0,115240.0,1.10888639]
[1758036361187,0.2816,115250.0,115240.0,0.74069215]
[1758036361411,0.2816,115250.0,115240.0,1.09760401]
[1758036361905,0.2816,115250.0,115240.0,0.72940977]
[1758036362128,0.36496,115250.0,115240.0,0.72940977]
[1758036362354,0.36496,115250.0,115240.0,1.09760401]
[1758036362596,0.08536,115250.0,115240.0,1.09760401]
[1758036362879,0.36484,115250.0,115240.0,1.09760401]
[1758036363112,0.3648,115250.0,115240.0,0.72940977]
[1758036363356,0.36472,115250.0,115240.0,1.10003401]
[1758036363807,0.36472,115250.0,115240.0,1.10878927]
[1758036364459,0.36472,115250.0,115240.0,1.10028927]
[1758036365079,0.36472,115250.0,115240.0,0.73209503]
[1758036365290,0.36472,115250.0,115240.0,1.10028927]
[1758036367378,0.08536,115250.0,115240.0,1.10028927]
[1758036367588,0.36444,115250.0,115240.0,1.10028927]
[1758036369233,0.36428,115250.0,115240.0,1.10028927]
[1758036369507,0.36428,115250.0,115240.0,0.73209503]
[1758036369718,0.36428,115250.0,115240.0,1.10028927]
[1758036370596,0.36428,115250.0,115240.0,0.73209503]
[1758036370803,0.36632,115250.0,115240.0,1.09656927]
[1758036371009,0.36428,115250.0,115240.0,0.73285503]
[1758036371221,0.36428,115250.0,115240.0,1.10104927]
[1758036372921,0.36428,115250.0,115240.0,0.73285503]
[1758036373215,0.36428,115250.0,115240.0,1.10104927]
[1758036373643,0.36428,115250.0,115240.0,1.08986401]
[1758036375711,0.36428,115250.0,115240.0,0.72166977]
[1758036375839,0.36428,115250.0,115240.0,1.08986401]
[1758036376380,0.36955,115250.0,115240.0,0.72166977]
[1758036376858,0.36632,115250.0,115240.0,0.72166977]
[1758036377122,0.36428,115250.0,115240.0,0.72166977]
[1758036378459,0.73451424,115250.0,115240.0,0.72166977]
[1758036378888,0.36955,115250.0,115240.0,0.72166977]
[1758036379088,0.36632,115250.0,115240.0,0.72166977]
[1758036379299,0.73451424,115250.0,115240.0,0.72166977]
[1758036379569,0.73451424,115250.0,115240.0,0.32166977]
[1758036379965,0.73451424,115250.0,115240.0,0.72166977]
[1758036381220,0.65115424,115250.0,115240.0,0.72166977]
[1758036381802,0.69734637,115250.0,115240.0,0.72166977]
[1758036382368,0.28296,115250.0,115240.0,0.72166977]
[1758036382553,0.69734637,115250.0,115240.0,0.72166977]
[1758036382784,0.69530637,115250.0,115240.0,0.72166977]
[1758036383197,0.69734637,115250.0,115240.0,0.72166977]
[1758036383467,0.69530637,115250.0,115240.0,0.72166977]
[1758036384218,0.002,115250.0,115240.0,0.72166977]
[1758036384429,0.69482637,115250.0,115240.0,0.72409977]
[1758036384720,0.69482637,115250.0,115240.0,0.32166977]
[1758036385308,0.69686637,115250.0,115240.0,0.72166977]
[1758036385508,0.70009637,115250.0,115240.0,0.72166977]
[1758036385864,0.87363216,115250.0,115240.0,0.52375892]
[1758036386073,0.89652216,115250.0,115240.0,0.09564145]
[1758036386294,0.89662216,115250.0,115240.0,0.09564145]
[1758036386710,0.89562216,115250.0,115240.0,0.09264145]
[1758036388178,0.89562216,115250.0,115240.0,0.08664145]
[1758036388179,0.89462216,115250.0,115240.0,0.08664145]
[1758036388670,0.89562216,115250.0,115240.0,0.08864145]
[1758036388906,0.48123579,115250.0,115240.0,0.08864145]
[1758036389088,0.89538216,115250.0,115240.0,0.08864145]
[1758036389296,0.49,115240.0,115210.0,0.41438637]
[1758036389520,0.69262637,115230.0,115220.0,0.26005772]
[1758036389726,0.43976,115230.0,115220.0,0.11257409]
[1758036389953,0.85414637,115230.0,115220.0,0.08650145]
[1758036390171,1.27125637,115230.0,115220.0,0.08650145]
[1758036390376,1.27125637,115230.0,115220.0,0.48650145]
[1758036390585,0.92620637,115230.0,115220.0,0.48650145]
[1758036390836,1.09977228,115230.0,115220.0,0.48650145]
[1758036391046,1.09977228,115230.0,115220.0,0.55328183]
[1758036391273,1.10281228,115230.0,115220.0,0.55628183]
[1758036391487,1.10604228,115230.0,115220.0,0.58064183]
[1758036391881,1.10604228,115230.0,115220.0,0.18064183]
[1758036392133,1.12893228,115230.0,115220.0,0.18064183]
[1758036392346,1.12893228,115230.0,115220.0,0.58064183]
[1758036392570,1.52042865,115230.0,115220.0,0.55628183]
[1758036392795,1.54431865,115230.0,115220.0,0.09250145]
[1758036393492,1.54415865,115230.0,115220.0,0.09250145]
[1758036395339,0.43718591,115230.0,115220.0,0.09250145]
[1758036395520,1.54415865,115230.0,115220.0,0.09250145]
[1758036396784,1.54415865,115230.0,115220.0,0.49250145]
[1758036398642,1.54399865,115230.0,115220.0,0.49250145]
[1758036399433,1.57415055,115230.0,115220.0,0.006]
[1758036399818,1.29611055,115230.0,115220.0,0.006]
[1758036399995,1.57411055,115230.0,115220.0,0.006]
[1758036400212,1.60018945,115230.0,115220.0,0.006]
[1758036400598,1.57411055,115230.0,115220.0,0.006]
[1758036401005,0.74533781,115230.0,115220.0,0.006]
[1758036401367,1.57411055,115230.0,115220.0,0.006]
[1758036401986,1.57407055,115230.0,115220.0,0.006]
[1758036402627,1.57391055,115230.0,115220.0,0.006]
[1758036404282,0.74513781,115230.0,115220.0,0.006]
[1758036404534,1.57391055,115230.0,115220.0,0.006]
[1758036405315,0.46733781,115230.0,115220.0,0.006]
[1758036405712,1.29611055,115230.0,115220.0,0.006]
[1758036405896,1.57387055,115230.0,115220.0,0.006]
[1758036406578,1.57383055,115230.0,115220.0,0.006]
[1758036407327,1.23779865,115230.0,115220.0,0.02992]
[1758036407527,1.51547865,115230.0,115220.0,0.02992]
[1758036408572,1.06423274,115230.0,115220.0,0.11642145]
[1758036408781,0.64984637,115230.0,115220.0,0.11642145]
[1758036408990,0.92744637,115230.0,115220.0,0.11642145]
[1758036409199,1.34183274,115230.0,115220.0,0.11642145]
[1758036409414,0.64984637,115230.0,115220.0,0.13377954]
[1758036409597,0.92744637,115230.0,115220.0,0.13377954]
[1758036410481,1.10101228,115230.0,115220.0,0.13377954]
[1758036410686,1.51539865,115230.0,115220.0,0.51642145]
[1758036412784,1.34183274,115230.0,115220.0,0.51642145]
[1758036412994,1.51539865,115230.0,115220.0,0.51642145]
[1758036413889,1.34183274,115230.0,115220.0,0.11642145]
[1758036414108,1.51539865,115230.0,115220.0,0.11642145]
[1758036414316,1.51539865,115230.0,115220.0,0.51642145]
[1758036416191,1.34183274,115230.0,115220.0,0.51642145]
[1758036417246,1.51539865,115230.0,115220.0,0.11642145]
[1758036417649,1.51539865,115230.0,115220.0,0.51642145]
[1758036418516,1.34183274,115230.0,115220.0,0.51642145]
[1758036418718,1.51539865,115230.0,115220.0,0.51642145]
[1758036419379,1.34183274,115230.0,115220.0,0.51642145]
[1758036419776,1.51539865,115230.0,115220.0,0.51642145]
[1758036420621,1.51539865,115230.0,115220.0,0.11642145]
[1758036420832,0.87744637,115230.0,115220.0,0.30736051]
[1758036421042,0.08546,115230.0,115220.0,0.29000242]
[1758036421293,0.3623,115230.0,115220.0,1.10438879]
[1758036421503,0.3623,115230.0,115220.0,0.69000242]
[1758036422372,0.08546,115230.0,115220.0,1.10438879]
[1758036422603,0.36226,115230.0,115220.0,1.10438879]
[1758036426525,0.36226,115230.0,115220.0,0.69000242]
[1758036426737,0.77664637,115230.0,115220.0,0.69000242]
[1758036428679,0.36226,115230.0,115220.0,0.69000242]
[1758036428892,0.77664637,115230.0,115220.0,0.69000242]
[1758036431294,0.77664637,115230.0,115220.0,0.69850242]
[1758036431948,0.36226,115230.0,115220.0,0.69850242]
[1758036432169,0.77664637,115230.0,115220.0,0.69850242]
[1758036432379,0.36226,115230.0,115220.0,0.69850242]
[1758036432592,0.77664637,115230.0,115220.0,0.69850242]
[1758036436074,0.36226,115230.0,115220.0,0.69850242]
[1758036436296,0.77664637,115230.0,115220.0,0.69850242]
[1758036438951,0.36226,115230.0,115220.0,0.69850242]
[1758036439248,0.77664637,115230.0,115220.0,0.69850242]
[1758036441745,0.77664637,115230.0,115220.0,0.69000242]
[1758036441939,0.36226,115230.0,115220.0,0.69000242]
[1758036444586,0.7306594,115230.0,115220.0,0.69000242]
[1758036444791,0.36226,115230.0,115220.0,0.69000242]
[1758036446807,0.36226,115230.0,115220.0,0.69850242]
[1758036452341,0.36226,115230.0,115220.0,0.67458242]
[1758036452342,0.7327094,115230.0,115220.0,0.67458242]
[1758036452575,0.7327094,115230.0,115220.0,0.69755242]
[1758036452780,0.7306594,115230.0,115220.0,0.69755242]
[1758036453193,0.36106,115230.0,115220.0,0.69755242]
[1758036454888,0.36102,115230.0,115220.0,0.69755242]
[1758036456821,0.3609,115230.0,115220.0,0.69755242]
[1758036457036,0.08546,115230.0,115220.0,0.69755242]
[1758036457235,0.36078,115230.0,115220.0,0.69755242]
[1758036457881,0.36074,115230.0,115220.0,0.69755242]
[1758036458116,0.08546,115230.0,115220.0,0.69755242]
[1758036458342,0.36074,115230.0,115220.0,0.69755242]
[1758036458823,0.3607,115230.0,115220.0,0.69755242]
[1758036459284,0.08546,115230.0,115220.0,0.69755242]
[1758036459498,0.3607,115230.0,115220.0,0.69755242]
[1758036459728,0.3607,115230.0,115220.0,0.68905242]
[1758036460183,0.27734,115230.0,115220.0,0.68905242]
[1758036461129,0.27734,115230.0,115220.0,0.71512472]
[1758036464931,0.27734,115230.0,115220.0,0.72362472]
[1758036465184,0.3607,115230.0,115220.0,0.72362472]
[1758036465400,0.08546,115230.0,115220.0,0.72362472]
[1758036465623,0.36054,115230.0,115220.0,0.72362472]
[1758036465844,0.08546,115230.0,115220.0,0.72362472]
[1758036466062,0.36054,115230.0,115220.0,0.72362472]
[1758036469872,0.27718,115230.0,115220.0,0.71512472]
[1758036474937,0.27718,115230.0,115220.0,0.72362472]
[1758036477107,0.27718,115230.0,115220.0,0.32362472]
[1758036477738,0.27718,115230.0,115220.0,0.72362472]
[1758036481432,0.6507694,115230.0,115220.0,0.51857375]
[1758036481649,0.99749531,115230.0,115220.0,0.52707375]
[1758036481852,0.99749531,115230.0,115220.0,0.10100145]
[1758036484525,0.62909591,115230.0,115220.0,0.10100145]
[1758036484739,0.99749531,115230.0,115220.0,0.10100145]
[1758036486059,0.99749531,115230.0,115220.0,0.50100145]
[1758036488977,0.99749531,115230.0,115220.0,0.10100145]
[1758036492051,0.99749531,115230.0,115220.0,0.09250145]
[1758036493215,0.99749531,115230.0,115220.0,0.49250145]
[1758036496169,0.99749531,115230.0,115220.0,0.09250145]
[1758036496585,0.99749531,115230.0,115220.0,0.49250145]
[1758036499653,0.99749531,115230.0,115220.0,0.09250145]
[1758036500346,0.62909591,115230.0,115220.0,0.49250145]
[1758036501048,0.35401591,115230.0,115220.0,0.49250145]
[1758036501263,0.33085591,115230.0,115220.0,0.49250145]
[1758036501474,0.63063591,115230.0,115220.0,0.49250145]
[1758036501886,0.35555591,115230.0,115220.0,0.90698163]
[1758036502133,0.45707,115230.0,115220.0,1.1054926]
[1758036502323,0.18199,115230.0,115220.0,1.1054926]
[1758036502560,0.63063591,115230.0,115220.0,0.93191163]
[1758036502732,0.63063591,115230.0,115220.0,0.90698163]
[1758036503328,0.63063591,115230.0,115220.0,0.93191163]
[1758036503528,0.63063591,115230.0,115220.0,0.90698163]